[Event "Titled Tuesday Blitz November 29 Early 2022"]
[White "Indjic, Aleksandar"]
[Black "Ginzburg, Yakov"]
[WhiteFideId "911925"]
[BlackFideId "4157176"]
[WhiteElo "2592"]
[BlackElo "2305"]
[Result "1-0"]
[Round "04"]
[TimeControl "180+1"]
[Date "2022.11.30"]
[WhiteClock "0:00:42"]
[BlackClock "0:00:44"]

1. e4 {[%clk 0:03:00]}  c5 {[%clk 0:02:59]} 2. Nc3 {[%clk 0:02:59]}  e6 {[%clk 0:02:59]} 3. Nge2 {[%clk 0:02:57]}  Nc6 {[%clk 0:02:55]} 4. g3 {[%clk 0:02:57]}  d5 {[%clk 0:02:54]} 5. exd5 {[%clk 0:02:58]}  exd5 {[%clk 0:02:54]} 6. d4 {[%clk 0:02:58]}  cxd4 {[%clk 0:02:51]} 7. Nxd4 {[%clk 0:02:57]}  Bc5 {[%clk 0:02:50]} 8. Nb3 {[%clk 0:02:40]}  Bb4 {[%clk 0:02:26]} 9. Bg2 {[%clk 0:02:40]}  Nge7 {[%clk 0:02:24]} 10. O-O {[%clk 0:02:39]}  Bxc3 {[%clk 0:02:22]} 11. bxc3 {[%clk 0:02:40]}  O-O {[%clk 0:02:22]} 12. Ba3 {[%clk 0:02:40]}  Re8 {[%clk 0:02:20]} 13. Re1 {[%clk 0:02:39]}  Bf5 {[%clk 0:02:12]} 14. h4 {[%clk 0:02:27]}  Rc8 {[%clk 0:02:11]} 15. g4 {[%clk 0:02:26]}  Be6 {[%clk 0:02:05]} 16. f4 {[%clk 0:02:08]}  Ng6 {[%clk 0:01:15]} 17. f5 {[%clk 0:02:01]}  Qxh4 {[%clk 0:01:14]} 18. fxe6 {[%clk 0:01:58]}  Rxe6 {[%clk 0:01:09]} 19. Rxe6 {[%clk 0:00:47]}  fxe6 {[%clk 0:01:09]} 20. Bd6 {[%clk 0:00:47]}  Nce5 {[%clk 0:01:05]} 21. Qe1 {[%clk 0:00:45]}  Qg5 {[%clk 0:00:58]} 22. Nd4 {[%clk 0:00:44]}  Nxg4 {[%clk 0:00:44]} 23. Qxe6+ {[%clk 0:00:42]} 1-0


[Site "https://www.chess.com"]

[Event "Titled Tuesday Blitz November 29 Early 2022"]
[White "Ismayil, Malak"]
[Black "Oparin, Grigoriy"]
[WhiteFideId "13412604"]
[BlackFideId "24125890"]
[WhiteElo "1879"]
[BlackElo "2639"]
[Result "0-1"]
[Round "04"]
[TimeControl "180+1"]
[Date "2022.11.30"]
[WhiteClock "0:00:03"]
[BlackClock "0:02:24"]

1. e4 {[%clk 0:03:00]}  c5 {[%clk 0:02:59]} 2. Nf3 {[%clk 0:03:00]}  e6 {[%clk 0:03:00]} 3. b3 {[%clk 0:02:53]}  Nc6 {[%clk 0:02:56]} 4. Bb2 {[%clk 0:02:53]}  Nf6 {[%clk 0:02:56]} 5. d3 {[%clk 0:02:53]}  d5 {[%clk 0:02:56]} 6. Nbd2 {[%clk 0:02:50]}  Be7 {[%clk 0:02:54]} 7. g3 {[%clk 0:02:50]}  O-O {[%clk 0:02:54]} 8. Bg2 {[%clk 0:02:50]}  b5 {[%clk 0:02:54]} 9. O-O {[%clk 0:02:50]}  Bb7 {[%clk 0:02:55]} 10. Qe2 {[%clk 0:02:50]}  a5 {[%clk 0:02:55]} 11. a4 {[%clk 0:02:49]}  b4 {[%clk 0:02:54]} 12. Rfe1 {[%clk 0:02:44]}  Re8 {[%clk 0:02:54]} 13. Rad1 {[%clk 0:02:43]}  Rc8 {[%clk 0:02:54]} 14. h4 {[%clk 0:02:35]}  h6 {[%clk 0:02:52]} 15. Nb1 {[%clk 0:02:04]}  Qb6 {[%clk 0:02:41]} 16. e5 {[%clk 0:01:38]}  Nd7 {[%clk 0:02:41]} 17. g4 {[%clk 0:01:38]}  Nd4 {[%clk 0:02:41]} 18. Bxd4 {[%clk 0:01:27]}  cxd4 {[%clk 0:02:42]} 19. g5 {[%clk 0:01:27]}  h5 {[%clk 0:02:37]} 20. Nh2 {[%clk 0:01:22]}  g6 {[%clk 0:02:36]} 21. f4 {[%clk 0:01:14]}  Rc7 {[%clk 0:02:36]} 22. Rd2 {[%clk 0:01:09]}  Rec8 {[%clk 0:02:36]} 23. Nf1 {[%clk 0:01:08]}  Nb8 {[%clk 0:02:36]} 24. Ng3 {[%clk 0:01:07]}  Nc6 {[%clk 0:02:35]} 25. Bf3 {[%clk 0:01:04]}  Bf8 {[%clk 0:02:35]} 26. Kh2 {[%clk 0:00:59]}  Ne7 {[%clk 0:02:35]} 27. Rg1 {[%clk 0:00:59]}  Bg7 {[%clk 0:02:34]} 28. Rg2 {[%clk 0:00:53]}  Ba6 {[%clk 0:02:31]} 29. Qd1 {[%clk 0:00:29]}  Kf8 {[%clk 0:02:31]} 30. Qg1 {[%clk 0:00:16]}  Ke8 {[%clk 0:02:30]} 31. Qe1 {[%clk 0:00:16]}  Kd7 {[%clk 0:02:31]} 32. Qe2 {[%clk 0:00:16]}  Kc6 {[%clk 0:02:30]} 33. Qd1 {[%clk 0:00:14]}  Kb7 {[%clk 0:02:30]} 34. Kh3 {[%clk 0:00:14]}  Ka7 {[%clk 0:02:31]} 35. Kh2 {[%clk 0:00:14]}  Bb7 {[%clk 0:02:22]} 36. Kh3 {[%clk 0:00:14]}  Nc6 {[%clk 0:02:22]} 37. Kh2 {[%clk 0:00:14]}  Nb8 {[%clk 0:02:23]} 38. Kh3 {[%clk 0:00:14]}  Nd7 {[%clk 0:02:23]} 39. Kh2 {[%clk 0:00:14]}  Nc5 {[%clk 0:02:23]} 40. Kh3 {[%clk 0:00:13]}  Bc6 {[%clk 0:02:22]} 41. Kh2 {[%clk 0:00:09]}  Bf8 {[%clk 0:02:22]} 42. Kh3 {[%clk 0:00:06]}  Nd7 {[%clk 0:02:22]} 43. Kh2 {[%clk 0:00:06]}  Qb7 {[%clk 0:02:23]} 44. Kh3 {[%clk 0:00:07]}  Bc5 {[%clk 0:02:24]} 45. Kh2 {[%clk 0:00:07]}  Bb6 {[%clk 0:02:24]} 46. Kh3 {[%clk 0:00:07]}  Nc5 {[%clk 0:02:25]} 47. Kh2 {[%clk 0:00:05]}  Ne4 {[%clk 0:02:26]} 48. dxe4 {[%clk 0:00:02]}  dxe4 {[%clk 0:02:26]} 49. Bxe4 {[%clk 0:00:02]}  Bxe4 {[%clk 0:02:26]} 50. Nxe4 {[%clk 0:00:03]}  Qxe4 {[%clk 0:02:27]} 51. Qf1 {[%clk 0:00:03]}  Rxc2 {[%clk 0:02:26]} 52. Qb5 {[%clk 0:00:01]}  Rxd2 {[%clk 0:02:24]} 53. Nxd2 {[%clk 0:00:02]}  Qxf4+ {[%clk 0:02:24]} 54. Kh3 {[%clk 0:00:03]}  Rc3+ {[%clk 0:02:24]} 0-1


[Site "https://www.chess.com"]

[Event "Titled Tuesday Blitz November 29 Early 2022"]
[White "Kezin, Roman"]
[Black "Sadykov, Ramil"]
[WhiteFideId "24124621"]
[BlackFideId "24113590"]
[WhiteElo "2501"]
[BlackElo "2245"]
[Result "0-1"]
[Round "04"]
[TimeControl "180+1"]
[Date "2022.11.30"]
[WhiteClock "0:00:01"]
[BlackClock "0:00:02"]

1. Nf3 {[%clk 0:03:00]}  Nf6 {[%clk 0:02:56]} 2. g3 {[%clk 0:03:01]}  g6 {[%clk 0:02:55]} 3. Bg2 {[%clk 0:03:02]}  Bg7 {[%clk 0:02:56]} 4. O-O {[%clk 0:03:03]}  O-O {[%clk 0:02:57]} 5. b3 {[%clk 0:03:03]}  d5 {[%clk 0:02:56]} 6. Bb2 {[%clk 0:03:03]}  c5 {[%clk 0:02:57]} 7. e3 {[%clk 0:03:04]}  Nc6 {[%clk 0:02:56]} 8. d4 {[%clk 0:03:04]}  Ne4 {[%clk 0:02:36]} 9. Qc1 {[%clk 0:02:55]}  Re8 {[%clk 0:02:31]} 10. dxc5 {[%clk 0:02:46]}  e5 {[%clk 0:02:22]} 11. Rd1 {[%clk 0:02:40]}  d4 {[%clk 0:01:32]} 12. c3 {[%clk 0:01:50]}  d3 {[%clk 0:01:20]} 13. b4 {[%clk 0:01:43]}  Bg4 {[%clk 0:01:09]} 14. h3 {[%clk 0:01:32]}  Bxf3 {[%clk 0:01:08]} 15. Bxf3 {[%clk 0:01:33]}  Ng5 {[%clk 0:01:09]} 16. Bg2 {[%clk 0:01:31]}  e4 {[%clk 0:01:08]} 17. Nd2 {[%clk 0:01:30]}  Ne5 {[%clk 0:00:55]} 18. h4 {[%clk 0:01:13]}  Ngf3+ {[%clk 0:00:51]} 19. Nxf3 {[%clk 0:01:10]}  exf3 {[%clk 0:00:38]} 20. Bf1 {[%clk 0:01:10]}  g5 {[%clk 0:00:33]} 21. h5 {[%clk 0:00:58]}  Qd7 {[%clk 0:00:27]} 22. c4 {[%clk 0:00:56]}  Qg4 {[%clk 0:00:24]} 23. h6 {[%clk 0:00:37]}  Bh8 {[%clk 0:00:16]} 24. Qc3 {[%clk 0:00:35]}  Rad8 {[%clk 0:00:04]} 25. Rxd3 {[%clk 0:00:35]}  Rxd3 {[%clk 0:00:02]} 26. Bxd3 {[%clk 0:00:34]}  Qh5 {[%clk 0:00:02]} 27. Bf1 {[%clk 0:00:20]}  Bf6 {[%clk 0:00:03]} 28. Qd4 {[%clk 0:00:15]}  Ng4 {[%clk 0:00:02]} 29. Qxg4 {[%clk 0:00:15]}  Qxg4 {[%clk 0:00:01]} 30. Bxf6 {[%clk 0:00:16]}  Qh5 {[%clk 0:00:01]} 31. Rd1 {[%clk 0:00:06]}  Qg6 {[%clk 0:00:02]} 32. Rd6 {[%clk 0:00:05]}  Qf5 {[%clk 0:00:02]} 33. Bd4 {[%clk 0:00:02]}  Qg4 {[%clk 0:00:02]} 34. b5 {[%clk 0:00:02]}  a6 {[%clk 0:00:02]} 35. c6 {[%clk 0:00:02]}  bxc6 {[%clk 0:00:03]} 36. bxa6 {[%clk 0:00:03]}  Ra8 {[%clk 0:00:02]} 37. a7 {[%clk 0:00:03]}  Qc8 {[%clk 0:00:02]} 38. Bd3 {[%clk 0:00:02]}  Qb7 {[%clk 0:00:02]} 39. Be4 {[%clk 0:00:01]}  Qc7 {[%clk 0:00:02]} 0-1


[Site "https://www.chess.com"]

[Event "Titled Tuesday Blitz November 29 Early 2022"]
[White "Korkmaz, Necmettin"]
[Black "Quinones Garcia, Santiago"]
[WhiteFideId "6303285"]
[BlackFideId "4408497"]
[WhiteElo "2094"]
[BlackElo "2249"]
[Result "1-0"]
[Round "04"]
[TimeControl "180+1"]
[Date "2022.11.30"]
[WhiteClock "0:00:58"]
[BlackClock "0:00:15"]

1. e4 {[%clk 0:03:00]}  e6 {[%clk 0:02:53]} 2. d3 {[%clk 0:03:00]}  d5 {[%clk 0:02:54]} 3. Nd2 {[%clk 0:02:59]}  c5 {[%clk 0:02:54]} 4. Ngf3 {[%clk 0:02:59]}  Nc6 {[%clk 0:02:55]} 5. g3 {[%clk 0:02:59]}  Nf6 {[%clk 0:02:54]} 6. Bg2 {[%clk 0:02:59]}  Be7 {[%clk 0:02:55]} 7. O-O {[%clk 0:02:59]}  O-O {[%clk 0:02:56]} 8. Re1 {[%clk 0:03:00]}  Nd7 {[%clk 0:02:54]} 9. e5 {[%clk 0:02:57]}  Qc7 {[%clk 0:02:51]} 10. Qe2 {[%clk 0:02:55]}  b5 {[%clk 0:02:48]} 11. Nf1 {[%clk 0:02:55]}  Bb7 {[%clk 0:02:49]} 12. Bf4 {[%clk 0:02:53]}  c4 {[%clk 0:02:49]} 13. d4 {[%clk 0:02:51]}  b4 {[%clk 0:02:44]} 14. c3 {[%clk 0:02:48]}  a5 {[%clk 0:02:34]} 15. h4 {[%clk 0:02:47]}  Rfb8 {[%clk 0:02:32]} 16. h5 {[%clk 0:02:46]}  a4 {[%clk 0:02:30]} 17. a3 {[%clk 0:02:46]}  bxa3 {[%clk 0:02:25]} 18. bxa3 {[%clk 0:02:46]}  Ba6 {[%clk 0:02:25]} 19. Ne3 {[%clk 0:02:44]}  Rb3 {[%clk 0:02:25]} 20. Qc2 {[%clk 0:02:38]}  Rab8 {[%clk 0:02:21]} 21. Ra2 {[%clk 0:02:35]}  Bxa3 {[%clk 0:02:17]} 22. Ng5 {[%clk 0:02:26]}  Nf8 {[%clk 0:02:17]} 23. Rea1 {[%clk 0:02:22]}  Bb2 {[%clk 0:02:09]} 24. Rxb2 {[%clk 0:02:10]}  Rxb2 {[%clk 0:02:09]} 25. Qxa4 {[%clk 0:02:11]}  Rb1+ {[%clk 0:01:59]} 26. Rxb1 {[%clk 0:02:10]}  Rxb1+ {[%clk 0:02:00]} 27. Kh2 {[%clk 0:02:10]}  Bb5 {[%clk 0:02:00]} 28. Qc2 {[%clk 0:02:09]}  Rb3 {[%clk 0:01:58]} 29. h6 {[%clk 0:02:08]}  Qa5 {[%clk 0:01:45]} 30. hxg7 {[%clk 0:02:04]}  Ng6 {[%clk 0:01:44]} 31. Nxd5 {[%clk 0:01:59]}  exd5 {[%clk 0:01:40]} 32. Bxd5 {[%clk 0:01:59]}  Nd8 {[%clk 0:01:40]} 33. Qf5 {[%clk 0:01:58]}  Be8 {[%clk 0:01:31]} 34. e6 {[%clk 0:01:57]}  Nxe6 {[%clk 0:01:20]} 35. Nxe6 {[%clk 0:01:56]}  Qa2 {[%clk 0:01:07]} 36. Be3 {[%clk 0:01:44]}  Rxc3 {[%clk 0:00:59]} 37. Nc7 {[%clk 0:01:30]}  Ne7 {[%clk 0:00:50]} 38. Qe5 {[%clk 0:01:24]}  Nxd5 {[%clk 0:00:39]} 39. Qxe8+ {[%clk 0:01:21]}  Kxg7 {[%clk 0:00:39]} 40. Nxd5 {[%clk 0:01:21]}  Rc2 {[%clk 0:00:37]} 41. Qe5+ {[%clk 0:01:18]}  Kg8 {[%clk 0:00:25]} 42. Nf6+ {[%clk 0:01:17]}  Kg7 {[%clk 0:00:23]} 43. Qg5+ {[%clk 0:01:16]}  Kf8 {[%clk 0:00:23]} 44. Nxh7+ {[%clk 0:01:15]}  Ke8 {[%clk 0:00:23]} 45. Qb5+ {[%clk 0:01:10]}  Kd8 {[%clk 0:00:19]} 46. Qb6+ {[%clk 0:01:03]}  Kd7 {[%clk 0:00:19]} 47. Nf6+ {[%clk 0:01:02]}  Kc8 {[%clk 0:00:18]} 48. Qc6+ {[%clk 0:00:58]}  Kb8 {[%clk 0:00:17]} 49. Nd7+ {[%clk 0:00:58]}  Ka7 {[%clk 0:00:16]} 50. Qb6+ {[%clk 0:00:58]}  Ka8 {[%clk 0:00:15]} 51. Qb8# {[%clk 0:00:58]} 1-0


[Site "https://www.chess.com"]

[Event "Titled Tuesday Blitz November 29 Early 2022"]
[White "Kovacevic, Radmila"]
[Black "Izuzquiza Gonzalez, Javier"]
[WhiteFideId "933171"]
[BlackFideId "3101029"]
[WhiteElo "2208"]
[BlackElo "2034"]
[Result "1-0"]
[Round "04"]
[TimeControl "180+1"]
[Date "2022.11.30"]
[WhiteClock "0:00:31"]
[BlackClock "0:00:42"]

1. e4 {[%clk 0:02:58]}  c5 {[%clk 0:03:00]} 2. d4 {[%clk 0:02:59]}  cxd4 {[%clk 0:02:59]} 3. c3 {[%clk 0:02:59]}  dxc3 {[%clk 0:03:00]} 4. Nxc3 {[%clk 0:02:59]}  e6 {[%clk 0:03:01]} 5. f4 {[%clk 0:03:00]}  a6 {[%clk 0:03:01]} 6. Nf3 {[%clk 0:03:00]}  Qc7 {[%clk 0:02:58]} 7. Be3 {[%clk 0:02:51]}  Nc6 {[%clk 0:02:56]} 8. Be2 {[%clk 0:02:48]}  Nge7 {[%clk 0:02:56]} 9. O-O {[%clk 0:02:47]}  Ng6 {[%clk 0:02:57]} 10. Ng5 {[%clk 0:02:12]}  Be7 {[%clk 0:02:43]} 11. f5 {[%clk 0:01:58]}  exf5 {[%clk 0:02:37]} 12. Nd5 {[%clk 0:01:54]}  Qd8 {[%clk 0:02:32]} 13. exf5 {[%clk 0:01:31]}  Nge5 {[%clk 0:02:27]} 14. f6 {[%clk 0:01:28]}  gxf6 {[%clk 0:02:24]} 15. Ne4 {[%clk 0:01:23]}  Kf8 {[%clk 0:01:08]} 16. Bh6+ {[%clk 0:01:20]}  Ke8 {[%clk 0:01:09]} 17. Ndxf6+ {[%clk 0:01:09]}  Bxf6 {[%clk 0:01:07]} 18. Nxf6+ {[%clk 0:01:04]}  Ke7 {[%clk 0:01:07]} 19. Bg5 {[%clk 0:00:49]}  Qb6+ {[%clk 0:01:08]} 20. Kh1 {[%clk 0:00:48]}  Kf8 {[%clk 0:00:58]} 21. Bh6+ {[%clk 0:00:46]}  Ke7 {[%clk 0:00:58]} 22. Nd5+ {[%clk 0:00:46]}  Ke8 {[%clk 0:00:54]} 23. Nxb6 {[%clk 0:00:47]}  Rb8 {[%clk 0:00:54]} 24. Qd6 {[%clk 0:00:43]}  Rg8 {[%clk 0:00:50]} 25. Bh5 {[%clk 0:00:40]}  Ng6 {[%clk 0:00:41]} 26. Rae1+ {[%clk 0:00:38]}  Kd8 {[%clk 0:00:42]} 27. Bg5+ {[%clk 0:00:31]} 1-0


[Site "https://www.chess.com"]

[Event "Titled Tuesday Blitz November 29 Early 2022"]
[White "Kukreja, Sankalp"]
[Black "Antonio, Jorge Carlos"]
[WhiteFideId "45027676"]
[BlackFideId "113190"]
[WhiteElo "2154"]
[BlackElo "2247"]
[Result "1-0"]
[Round "04"]
[TimeControl "180+1"]
[Date "2022.11.30"]
[WhiteClock "0:01:09"]
[BlackClock "0:01:02"]

1. e4 {[%clk 0:02:48]}  e6 {[%clk 0:02:19]} 2. d4 {[%clk 0:02:47]}  d5 {[%clk 0:02:18]} 3. Nc3 {[%clk 0:02:47]}  Bb4 {[%clk 0:02:16]} 4. Ne2 {[%clk 0:02:46]}  c5 {[%clk 0:02:14]} 5. a3 {[%clk 0:02:23]}  Bxc3+ {[%clk 0:02:13]} 6. Nxc3 {[%clk 0:02:19]}  cxd4 {[%clk 0:02:14]} 7. Qxd4 {[%clk 0:02:15]}  Nf6 {[%clk 0:02:07]} 8. Bg5 {[%clk 0:02:10]}  h6 {[%clk 0:02:05]} 9. Bxf6 {[%clk 0:02:06]}  Qxf6 {[%clk 0:02:03]} 10. Qxf6 {[%clk 0:02:06]}  gxf6 {[%clk 0:02:03]} 11. exd5 {[%clk 0:02:06]}  e5 {[%clk 0:02:03]} 12. Nb5 {[%clk 0:01:38]}  Kd8 {[%clk 0:01:56]} 13. O-O-O {[%clk 0:01:31]}  a6 {[%clk 0:01:50]} 14. Nd6 {[%clk 0:01:28]}  Ke7 {[%clk 0:01:47]} 15. Nxc8+ {[%clk 0:01:18]}  Rxc8 {[%clk 0:01:42]} 16. d6+ {[%clk 0:01:18]}  Kd7 {[%clk 0:01:41]} 17. Bd3 {[%clk 0:01:18]}  Kd8 {[%clk 0:01:34]} 18. Bf5 {[%clk 0:01:16]}  Rc6 {[%clk 0:01:32]} 19. Rd3 {[%clk 0:01:16]}  Nd7 {[%clk 0:01:29]} 20. Rhd1 {[%clk 0:01:13]}  Nc5 {[%clk 0:01:21]} 21. Rg3 {[%clk 0:01:12]}  Ne6 {[%clk 0:01:09]} 22. Bxe6 {[%clk 0:01:08]}  fxe6 {[%clk 0:01:03]} 23. Rg8+ {[%clk 0:01:08]}  Kd7 {[%clk 0:01:02]} 24. Rxa8 {[%clk 0:01:09]} 1-0


[Site "https://www.chess.com"]

[Event "Titled Tuesday Blitz November 29 Early 2022"]
[White "Kuzmin, Roman"]
[Black "Schut, Han"]
[WhiteFideId "44134932"]
[BlackFideId "1005561"]
[WhiteElo "2197"]
[BlackElo "2024"]
[Result "0-1"]
[Round "04"]
[TimeControl "180+1"]
[Date "2022.11.30"]
[WhiteClock "0:00:01"]
[BlackClock "0:00:22"]

1. e4 {[%clk 0:03:00]}  c5 {[%clk 0:02:59]} 2. Nf3 {[%clk 0:02:56]}  d6 {[%clk 0:02:59]} 3. d4 {[%clk 0:02:57]}  cxd4 {[%clk 0:03:00]} 4. Nxd4 {[%clk 0:02:57]}  Nf6 {[%clk 0:03:01]} 5. Nc3 {[%clk 0:02:57]}  a6 {[%clk 0:03:01]} 6. Be2 {[%clk 0:02:58]}  e5 {[%clk 0:03:02]} 7. Nb3 {[%clk 0:02:58]}  Be7 {[%clk 0:02:57]} 8. Be3 {[%clk 0:02:58]}  Be6 {[%clk 0:02:56]} 9. O-O {[%clk 0:02:56]}  Nbd7 {[%clk 0:02:57]} 10. a4 {[%clk 0:02:53]}  Rc8 {[%clk 0:02:57]} 11. f3 {[%clk 0:02:49]}  Qc7 {[%clk 0:02:54]} 12. a5 {[%clk 0:02:49]}  Qc6 {[%clk 0:02:54]} 13. Qd2 {[%clk 0:02:43]}  d5 {[%clk 0:02:54]} 14. exd5 {[%clk 0:02:39]}  Bxd5 {[%clk 0:02:55]} 15. Nxd5 {[%clk 0:02:16]}  Nxd5 {[%clk 0:02:56]} 16. Bf2 {[%clk 0:02:17]}  Nf4 {[%clk 0:02:49]} 17. c3 {[%clk 0:01:51]}  Nc5 {[%clk 0:02:44]} 18. Nc1 {[%clk 0:01:33]}  Rd8 {[%clk 0:02:34]} 19. Qc2 {[%clk 0:01:30]}  Nce6 {[%clk 0:02:28]} 20. Nd3 {[%clk 0:01:17]}  O-O {[%clk 0:02:01]} 21. Nxe5 {[%clk 0:01:12]}  Qd5 {[%clk 0:01:36]} 22. Nc4 {[%clk 0:01:11]}  Qg5 {[%clk 0:01:33]} 23. Bg3 {[%clk 0:01:02]}  Bc5+ {[%clk 0:01:06]} 24. Kh1 {[%clk 0:01:01]}  h5 {[%clk 0:01:01]} 25. Rfd1 {[%clk 0:00:16]}  h4 {[%clk 0:00:58]} 26. Bxf4 {[%clk 0:00:15]}  Nxf4 {[%clk 0:00:58]} 27. Bf1 {[%clk 0:00:16]}  Rde8 {[%clk 0:00:47]} 28. Nd2 {[%clk 0:00:09]}  Re2 {[%clk 0:00:45]} 29. Ne4 {[%clk 0:00:07]}  Qg6 {[%clk 0:00:37]} 30. Rd2 {[%clk 0:00:07]}  Nxg2 {[%clk 0:00:26]} 31. Nxc5 {[%clk 0:00:01]}  Ne3 {[%clk 0:00:22]} 0-1


[Site "https://www.chess.com"]

[Event "Titled Tuesday Blitz November 29 Early 2022"]
[White "Lenderman, Aleksandr"]
[Black "Ohanyan, Emin"]
[WhiteFideId "2021285"]
[BlackFideId "13312022"]
[WhiteElo "2607"]
[BlackElo "2352"]
[Result "1-0"]
[Round "04"]
[TimeControl "180+1"]
[Date "2022.11.30"]
[WhiteClock "0:00:09"]
[BlackClock "0:00:01"]

1. e4 {[%clk 0:03:00]}  e5 {[%clk 0:02:58]} 2. Nf3 {[%clk 0:02:58]}  Nc6 {[%clk 0:02:58]} 3. Nc3 {[%clk 0:02:55]}  Nf6 {[%clk 0:02:58]} 4. a4 {[%clk 0:02:55]}  Bb4 {[%clk 0:02:30]} 5. Bd3 {[%clk 0:02:52]}  O-O {[%clk 0:02:26]} 6. Nd5 {[%clk 0:02:50]}  Bc5 {[%clk 0:02:22]} 7. c3 {[%clk 0:02:48]}  a5 {[%clk 0:02:22]} 8. O-O {[%clk 0:02:46]}  d6 {[%clk 0:02:22]} 9. Bc2 {[%clk 0:02:46]}  Nxd5 {[%clk 0:02:11]} 10. exd5 {[%clk 0:02:45]}  Ne7 {[%clk 0:02:12]} 11. d4 {[%clk 0:02:45]}  exd4 {[%clk 0:02:13]} 12. cxd4 {[%clk 0:02:40]}  Bb6 {[%clk 0:02:11]} 13. Ng5 {[%clk 0:02:26]}  h6 {[%clk 0:02:05]} 14. Qh5 {[%clk 0:02:26]}  Bf5 {[%clk 0:01:35]} 15. Bxf5 {[%clk 0:02:19]}  Nxf5 {[%clk 0:01:36]} 16. Nf3 {[%clk 0:02:09]}  Nxd4 {[%clk 0:01:12]} 17. Nxd4 {[%clk 0:02:09]}  Bxd4 {[%clk 0:01:13]} 18. Ra3 {[%clk 0:02:10]}  Qf6 {[%clk 0:01:06]} 19. Rg3 {[%clk 0:02:10]}  Be5 {[%clk 0:01:00]} 20. Rg4 {[%clk 0:01:59]}  Kh7 {[%clk 0:00:59]} 21. Re1 {[%clk 0:01:54]}  Rae8 {[%clk 0:00:56]} 22. Rge4 {[%clk 0:01:55]}  Qg6 {[%clk 0:00:51]} 23. Qxg6+ {[%clk 0:01:48]}  Kxg6 {[%clk 0:00:44]} 24. Kf1 {[%clk 0:01:39]}  f5 {[%clk 0:00:34]} 25. Rc4 {[%clk 0:01:40]}  Rc8 {[%clk 0:00:31]} 26. Bd2 {[%clk 0:01:28]}  c6 {[%clk 0:00:17]} 27. dxc6 {[%clk 0:01:16]}  Rxc6 {[%clk 0:00:17]} 28. Rxc6 {[%clk 0:01:15]}  bxc6 {[%clk 0:00:18]} 29. Bxa5 {[%clk 0:01:15]}  Ra8 {[%clk 0:00:19]} 30. b4 {[%clk 0:01:15]}  c5 {[%clk 0:00:20]} 31. Bb6 {[%clk 0:00:56]}  cxb4 {[%clk 0:00:14]} 32. a5 {[%clk 0:00:56]}  b3 {[%clk 0:00:13]} 33. Ke2 {[%clk 0:00:56]}  Bc3 {[%clk 0:00:08]} 34. Rb1 {[%clk 0:00:51]}  Bxa5 {[%clk 0:00:02]} 35. Rxb3 {[%clk 0:00:52]}  Rb8 {[%clk 0:00:02]} 36. Rg3+ {[%clk 0:00:51]}  Kf6 {[%clk 0:00:02]} 37. Bxa5 {[%clk 0:00:52]}  Rb2+ {[%clk 0:00:03]} 38. Bd2 {[%clk 0:00:49]}  g5 {[%clk 0:00:03]} 39. Rd3 {[%clk 0:00:49]}  Ke6 {[%clk 0:00:03]} 40. h4 {[%clk 0:00:46]}  f4 {[%clk 0:00:03]} 41. hxg5 {[%clk 0:00:46]}  hxg5 {[%clk 0:00:04]} 42. g3 {[%clk 0:00:45]}  d5 {[%clk 0:00:03]} 43. gxf4 {[%clk 0:00:46]}  gxf4 {[%clk 0:00:04]} 44. Kf3 {[%clk 0:00:44]}  Rb1 {[%clk 0:00:04]} 45. Bxf4 {[%clk 0:00:44]}  Rh1 {[%clk 0:00:05]} 46. Re3+ {[%clk 0:00:43]}  Kf6 {[%clk 0:00:06]} 47. Bg3 {[%clk 0:00:40]}  Rd1 {[%clk 0:00:05]} 48. Re8 {[%clk 0:00:39]}  Kf5 {[%clk 0:00:05]} 49. Rd8 {[%clk 0:00:36]}  Ke6 {[%clk 0:00:06]} 50. Rd6+ {[%clk 0:00:35]}  Ke7 {[%clk 0:00:06]} 51. Rh6 {[%clk 0:00:34]}  Kd7 {[%clk 0:00:05]} 52. Ke3 {[%clk 0:00:33]}  Ke7 {[%clk 0:00:05]} 53. f4 {[%clk 0:00:26]}  Kf7 {[%clk 0:00:03]} 54. f5 {[%clk 0:00:24]}  Rf1 {[%clk 0:00:04]} 55. Bf4 {[%clk 0:00:22]}  d4+ {[%clk 0:00:02]} 56. Ke4 {[%clk 0:00:23]}  d3 {[%clk 0:00:03]} 57. Rd6 {[%clk 0:00:21]}  Re1+ {[%clk 0:00:03]} 58. Kxd3 {[%clk 0:00:20]}  Rf1 {[%clk 0:00:02]} 59. Ke4 {[%clk 0:00:19]}  Re1+ {[%clk 0:00:03]} 60. Be3 {[%clk 0:00:20]}  Rh1 {[%clk 0:00:02]} 61. Rd7+ {[%clk 0:00:19]}  Ke8 {[%clk 0:00:03]} 62. Ra7 {[%clk 0:00:19]}  Re1 {[%clk 0:00:04]} 63. f6 {[%clk 0:00:18]}  Kf8 {[%clk 0:00:04]} 64. Kf4 {[%clk 0:00:09]}  Rf1+ {[%clk 0:00:01]} 65. Kg5 {[%clk 0:00:09]}  Rg1+ {[%clk 0:00:01]} 66. Bxg1 {[%clk 0:00:09]} 1-0


[Site "https://www.chess.com"]

[Event "Titled Tuesday Blitz November 29 Early 2022"]
[White "Malyi, Viacheslav"]
[Black "Drozdowski, Kacper"]
[WhiteFideId "14123983"]
[BlackFideId "1136720"]
[WhiteElo "2291"]
[BlackElo "2485"]
[Result "0-1"]
[Round "04"]
[TimeControl "180+1"]
[Date "2022.11.30"]
[WhiteClock "0:01:21"]
[BlackClock "0:01:36"]

1. e4 {[%clk 0:03:00]}  c5 {[%clk 0:02:54]} 2. Nf3 {[%clk 0:02:59]}  e6 {[%clk 0:02:54]} 3. g3 {[%clk 0:02:57]}  Nc6 {[%clk 0:02:54]} 4. Bg2 {[%clk 0:02:57]}  Nf6 {[%clk 0:02:54]} 5. Qe2 {[%clk 0:02:57]}  d5 {[%clk 0:02:45]} 6. e5 {[%clk 0:02:57]}  Nd7 {[%clk 0:02:44]} 7. O-O {[%clk 0:02:57]}  Be7 {[%clk 0:02:44]} 8. Re1 {[%clk 0:02:57]}  Rb8 {[%clk 0:02:38]} 9. h4 {[%clk 0:02:56]}  b5 {[%clk 0:02:36]} 10. d3 {[%clk 0:02:56]}  h6 {[%clk 0:02:36]} 11. h5 {[%clk 0:02:56]}  Qc7 {[%clk 0:02:32]} 12. Bf4 {[%clk 0:02:52]}  a5 {[%clk 0:02:31]} 13. c4 {[%clk 0:02:44]}  dxc4 {[%clk 0:02:26]} 14. dxc4 {[%clk 0:02:45]}  bxc4 {[%clk 0:02:24]} 15. Qxc4 {[%clk 0:02:43]}  Rxb2 {[%clk 0:02:21]} 16. Nc3 {[%clk 0:02:40]}  Nb6 {[%clk 0:02:18]} 17. Qe4 {[%clk 0:02:23]}  Bb7 {[%clk 0:02:16]} 18. Qd3 {[%clk 0:02:08]}  Nb4 {[%clk 0:02:10]} 19. Qb5+ {[%clk 0:02:04]}  Bc6 {[%clk 0:02:10]} 20. Qxa5 {[%clk 0:02:03]}  O-O {[%clk 0:02:00]} 21. Rab1 {[%clk 0:01:49]}  Rxb1 {[%clk 0:01:55]} 22. Rxb1 {[%clk 0:01:50]}  Ra8 {[%clk 0:01:55]} 23. Nb5 {[%clk 0:01:50]}  Qb7 {[%clk 0:01:45]} 24. Nd6 {[%clk 0:01:21]}  Bxd6 {[%clk 0:01:36]} 0-1


[Site "https://www.chess.com"]